[Event "Titled Tuesday Blitz February 07 Late 2023"]
[White "Buchenau, Frank"]
[Black "Bolourchifard, Farzad"]
[WhiteFideId "4604350"]
[BlackFideId "12510084"]
[WhiteElo "2222"]
[BlackElo "2292"]
[Result "0-1"]
[Round "05"]
[TimeControl "180+2"]
[Date "2023.02.07"]
[WhiteClock "0:00:01"]
[BlackClock "0:00:14"]

1. e4 {[%clk 0:03:00]}  e5 {[%clk 0:02:58]} 2. Bc4 {[%clk 0:03:00]}  Nf6 {[%clk 0:02:58]} 3. d3 {[%clk 0:03:00]}  Nc6 {[%clk 0:02:58]} 4. Nf3 {[%clk 0:03:00]}  Bc5 {[%clk 0:02:58]} 5. O-O {[%clk 0:03:00]}  d6 {[%clk 0:02:59]} 6. c3 {[%clk 0:03:01]}  a6 {[%clk 0:02:59]} 7. Bb3 {[%clk 0:02:59]}  h6 {[%clk 0:02:57]} 8. Nbd2 {[%clk 0:02:59]}  O-O {[%clk 0:02:57]} 9. Re1 {[%clk 0:02:57]}  Be6 {[%clk 0:02:57]} 10. Nf1 {[%clk 0:02:56]}  Re8 {[%clk 0:02:57]} 11. Bxe6 {[%clk 0:02:53]}  fxe6 {[%clk 0:02:57]} 12. b4 {[%clk 0:02:42]}  Ba7 {[%clk 0:02:56]} 13. a4 {[%clk 0:02:41]}  Rf8 {[%clk 0:02:55]} 14. Be3 {[%clk 0:02:37]}  Nh5 {[%clk 0:02:50]} 15. b5 {[%clk 0:02:26]}  Bxe3 {[%clk 0:02:48]} 16. bxc6 {[%clk 0:02:16]}  Ba7 {[%clk 0:02:36]} 17. cxb7 {[%clk 0:02:15]}  Rb8 {[%clk 0:02:36]} 18. Rb1 {[%clk 0:02:08]}  a5 {[%clk 0:02:06]} 19. d4 {[%clk 0:02:07]}  Qf6 {[%clk 0:01:05]} 20. Ne3 {[%clk 0:01:55]}  exd4 {[%clk 0:01:03]} 21. cxd4 {[%clk 0:01:51]}  Nf4 {[%clk 0:00:56]} 22. Rb3 {[%clk 0:01:06]}  Qg6 {[%clk 0:00:45]} 23. g3 {[%clk 0:00:58]}  Nh3+ {[%clk 0:00:44]} 24. Kg2 {[%clk 0:00:44]}  Nf4+ {[%clk 0:00:37]} 25. Kg1 {[%clk 0:00:35]}  Kh8 {[%clk 0:00:23]} 26. Nh4 {[%clk 0:00:21]}  Nh3+ {[%clk 0:00:23]} 27. Kg2 {[%clk 0:00:18]}  Rxf2+ {[%clk 0:00:20]} 28. Kxh3 {[%clk 0:00:18]}  Qxe4 {[%clk 0:00:20]} 29. Ng4 {[%clk 0:00:16]}  Qxd4 {[%clk 0:00:10]} 30. Qxd4 {[%clk 0:00:14]}  Bxd4 {[%clk 0:00:11]} 31. Nxf2 {[%clk 0:00:14]}  Bxf2 {[%clk 0:00:12]} 32. Rf1 {[%clk 0:00:14]}  Bb6 {[%clk 0:00:12]} 33. Ng6+ {[%clk 0:00:13]}  Kh7 {[%clk 0:00:12]} 34. Nf8+ {[%clk 0:00:13]}  Kg8 {[%clk 0:00:13]} 35. Nxe6 {[%clk 0:00:13]}  Rxb7 {[%clk 0:00:13]} 36. Nxc7 {[%clk 0:00:13]}  Rxc7 {[%clk 0:00:12]} 37. Rxb6 {[%clk 0:00:13]}  Rc4 {[%clk 0:00:13]} 38. Rxd6 {[%clk 0:00:13]}  Rxa4 {[%clk 0:00:13]} 39. Rd8+ {[%clk 0:00:13]}  Kh7 {[%clk 0:00:14]} 40. Rd7 {[%clk 0:00:13]}  h5 {[%clk 0:00:14]} 41. Rff7 {[%clk 0:00:13]}  Rg4 {[%clk 0:00:15]} 42. Kg2 {[%clk 0:00:13]}  a4 {[%clk 0:00:15]} 43. h3 {[%clk 0:00:13]}  Rg6 {[%clk 0:00:15]} 44. Rf5 {[%clk 0:00:13]}  Ra6 {[%clk 0:00:15]} 45. Rxh5+ {[%clk 0:00:12]}  Kg6 {[%clk 0:00:16]} 46. Re5 {[%clk 0:00:12]}  a3 {[%clk 0:00:16]} 47. Ree7 {[%clk 0:00:12]}  a2 {[%clk 0:00:16]} 48. Re1 {[%clk 0:00:09]}  a1=Q {[%clk 0:00:16]} 49. Rxa1 {[%clk 0:00:08]}  Rxa1 {[%clk 0:00:17]} 50. Kf3 {[%clk 0:00:09]}  Ra3+ {[%clk 0:00:18]} 51. Ke4 {[%clk 0:00:08]}  Rxg3 {[%clk 0:00:17]} 52. Rd3 {[%clk 0:00:06]}  Rg1 {[%clk 0:00:17]} 53. Rf3 {[%clk 0:00:06]}  Kh5 {[%clk 0:00:17]} 54. Kf4 {[%clk 0:00:06]}  g5+ {[%clk 0:00:18]} 55. Kf5 {[%clk 0:00:06]}  Kh4 {[%clk 0:00:18]} 56. Kf6 {[%clk 0:00:05]}  Ra1 {[%clk 0:00:18]} 57. Kf5 {[%clk 0:00:05]}  Ra5+ {[%clk 0:00:19]} 58. Ke4 {[%clk 0:00:05]}  Rb5 {[%clk 0:00:18]} 59. Re3 {[%clk 0:00:03]}  Rb4+ {[%clk 0:00:17]} 60. Kf5 {[%clk 0:00:03]}  Rb5+ {[%clk 0:00:17]} 61. Kf6 {[%clk 0:00:03]}  Kh5 {[%clk 0:00:16]} 62. Rf3 {[%clk 0:00:02]}  Rb4 {[%clk 0:00:16]} 63. Ke6 {[%clk 0:00:02]}  Rf4 {[%clk 0:00:14]} 64. Rg3 {[%clk 0:00:01]}  Kh4 {[%clk 0:00:15]} 65. Rg2 {[%clk 0:00:01]}  Rf3 {[%clk 0:00:14]} 0-1


[Site "https://www.chess.com"]

[Event "Titled Tuesday Blitz February 07 Late 2023"]
[White "Koziorowicz, Michal"]
[Black "Remolar Gallen, Jose"]
[WhiteFideId "21809194"]
[BlackFideId "2215187"]
[WhiteElo "2307"]
[BlackElo "2285"]
[Result "1-0"]
[Round "05"]
[TimeControl "180+2"]
[Date "2023.02.07"]
[WhiteClock "0:00:21"]
[BlackClock "0:00:03"]

1. g4 {[%clk 0:03:00]}  e5 {[%clk 0:02:57]} 2. Bg2 {[%clk 0:03:00]}  Nc6 {[%clk 0:02:57]} 3. d3 {[%clk 0:02:59]}  Nge7 {[%clk 0:02:57]} 4. c4 {[%clk 0:02:59]}  Ng6 {[%clk 0:02:56]} 5. Nc3 {[%clk 0:02:52]}  Bb4 {[%clk 0:02:49]} 6. Bd2 {[%clk 0:02:52]}  d6 {[%clk 0:02:44]} 7. h3 {[%clk 0:02:51]}  Nh4 {[%clk 0:02:32]} 8. Kf1 {[%clk 0:02:48]}  O-O {[%clk 0:02:27]} 9. Nf3 {[%clk 0:02:47]}  Nxg2 {[%clk 0:02:24]} 10. Kxg2 {[%clk 0:02:48]}  f5 {[%clk 0:02:24]} 11. gxf5 {[%clk 0:02:35]}  Bxf5 {[%clk 0:02:25]} 12. Nd5 {[%clk 0:02:34]}  Bxd2 {[%clk 0:02:03]} 13. Qxd2 {[%clk 0:02:35]}  e4 {[%clk 0:01:57]} 14. Nh2 {[%clk 0:02:24]}  Ne5 {[%clk 0:01:50]} 15. f4 {[%clk 0:02:09]}  Ng6 {[%clk 0:01:28]} 16. Ng4 {[%clk 0:01:13]}  c6 {[%clk 0:01:25]} 17. Nde3 {[%clk 0:01:13]}  Nxf4+ {[%clk 0:01:22]} 18. Kg3 {[%clk 0:01:12]}  Nh5+ {[%clk 0:01:06]} 19. Kh2 {[%clk 0:01:10]}  Qh4 {[%clk 0:00:56]} 20. Nxf5 {[%clk 0:01:07]}  Rxf5 {[%clk 0:00:57]} 21. Rhg1 {[%clk 0:01:05]}  Raf8 {[%clk 0:00:55]} 22. Nh6+ {[%clk 0:01:02]}  Kh8 {[%clk 0:00:55]} 23. Nxf5 {[%clk 0:01:02]}  Rxf5 {[%clk 0:00:55]} 24. Qe3 {[%clk 0:00:57]}  Rf2+ {[%clk 0:00:11]} 25. Rg2 {[%clk 0:00:57]}  Rxg2+ {[%clk 0:00:11]} 26. Kxg2 {[%clk 0:00:58]}  Nf4+ {[%clk 0:00:12]} 27. Kh2 {[%clk 0:00:58]}  d5 {[%clk 0:00:11]} 28. Rf1 {[%clk 0:00:56]}  g5 {[%clk 0:00:11]} 29. dxe4 {[%clk 0:00:48]}  dxe4 {[%clk 0:00:10]} 30. Rg1 {[%clk 0:00:44]}  h5 {[%clk 0:00:06]} 31. Qd4+ {[%clk 0:00:36]}  Kg8 {[%clk 0:00:05]} 32. Qd8+ {[%clk 0:00:35]}  Kf7 {[%clk 0:00:04]} 33. Qd7+ {[%clk 0:00:23]}  Kf6 {[%clk 0:00:05]} 34. Qd4+ {[%clk 0:00:23]}  Kf5 {[%clk 0:00:05]} 35. Qe3 {[%clk 0:00:20]}  g4 {[%clk 0:00:03]} 36. Rf1 {[%clk 0:00:20]}  Qxh3+ {[%clk 0:00:02]} 37. Qxh3 {[%clk 0:00:20]}  gxh3 {[%clk 0:00:03]} 38. e3 {[%clk 0:00:21]} 1-0


[Site "https://www.chess.com"]

[Event "Titled Tuesday Blitz February 07 Late 2023"]
[White "Sanal, Vahap"]
[Black "Tatarinov, Dmitry"]
[WhiteFideId "6300545"]
[BlackFideId "24160067"]
[WhiteElo "2600"]
[BlackElo "2310"]
[Result "1/2-1/2"]
[Round "05"]
[TimeControl "180+2"]
[Date "2023.02.07"]
[WhiteClock "0:00:26"]
[BlackClock "0:00:20"]

1. e4 {[%clk 0:03:00]}  e5 {[%clk 0:02:59]} 2. Nc3 {[%clk 0:02:58]}  Nc6 {[%clk 0:03:00]} 3. Bc4 {[%clk 0:02:57]}  Nf6 {[%clk 0:02:58]} 4. d3 {[%clk 0:02:55]}  Be7 {[%clk 0:02:55]} 5. f4 {[%clk 0:02:54]}  d6 {[%clk 0:02:54]} 6. Nf3 {[%clk 0:02:54]}  O-O {[%clk 0:02:54]} 7. O-O {[%clk 0:02:54]}  Bg4 {[%clk 0:02:50]} 8. h3 {[%clk 0:02:52]}  Bxf3 {[%clk 0:02:50]} 9. Qxf3 {[%clk 0:02:53]}  Na5 {[%clk 0:02:49]} 10. Bb3 {[%clk 0:02:52]}  Nxb3 {[%clk 0:02:49]} 11. axb3 {[%clk 0:02:53]}  exf4 {[%clk 0:02:50]} 12. Bxf4 {[%clk 0:02:52]}  c6 {[%clk 0:02:49]} 13. Kh1 {[%clk 0:02:49]}  a6 {[%clk 0:02:46]} 14. Ne2 {[%clk 0:02:49]}  Nd7 {[%clk 0:02:39]} 15. Qg3 {[%clk 0:02:33]}  Ne5 {[%clk 0:02:31]} 16. Bxe5 {[%clk 0:02:22]}  dxe5 {[%clk 0:02:32]} 17. Qxe5 {[%clk 0:02:22]}  Bf6 {[%clk 0:02:32]} 18. Qg3 {[%clk 0:02:21]}  Bxb2 {[%clk 0:02:31]} 19. Ra4 {[%clk 0:02:20]}  b5 {[%clk 0:02:26]} 20. Ra2 {[%clk 0:02:20]}  Bf6 {[%clk 0:02:25]} 21. e5 {[%clk 0:02:19]}  Bh4 {[%clk 0:02:21]} 22. Qg4 {[%clk 0:02:19]}  Kh8 {[%clk 0:02:11]} 23. Nf4 {[%clk 0:02:19]}  g6 {[%clk 0:02:10]} 24. Raa1 {[%clk 0:02:15]}  Bg5 {[%clk 0:02:06]} 25. Rae1 {[%clk 0:02:12]}  Bxf4 {[%clk 0:02:03]} 26. Rxf4 {[%clk 0:02:09]}  Qe7 {[%clk 0:02:03]} 27. Rf6 {[%clk 0:02:00]}  a5 {[%clk 0:02:00]} 28. Rxc6 {[%clk 0:01:56]}  a4 {[%clk 0:02:00]} 29. bxa4 {[%clk 0:01:57]}  bxa4 {[%clk 0:02:00]} 30. Qd4 {[%clk 0:01:57]}  Kg8 {[%clk 0:01:54]} 31. e6 {[%clk 0:01:57]}  a3 {[%clk 0:01:53]} 32. Rd6 {[%clk 0:01:50]}  a2 {[%clk 0:01:50]} 33. Ra1 {[%clk 0:01:24]}  fxe6 {[%clk 0:01:48]} 34. Rd7 {[%clk 0:01:23]}  Qf6 {[%clk 0:01:47]} 35. Qxf6 {[%clk 0:01:23]}  Rxf6 {[%clk 0:01:48]} 36. Rb7 {[%clk 0:01:23]}  e5 {[%clk 0:01:38]} 37. Kg1 {[%clk 0:01:19]}  h5 {[%clk 0:01:31]} 38. Rb2 {[%clk 0:01:18]}  Rfa6 {[%clk 0:01:31]} 39. Kf2 {[%clk 0:01:19]}  Kf7 {[%clk 0:01:32]} 40. Ke3 {[%clk 0:01:19]}  Ke6 {[%clk 0:01:32]} 41. Ke4 {[%clk 0:01:20]}  h4 {[%clk 0:01:30]} 42. Rb5 {[%clk 0:01:19]}  Kf6 {[%clk 0:01:19]} 43. Rb2 {[%clk 0:01:10]}  Ra4+ {[%clk 0:01:12]} 44. c4 {[%clk 0:01:10]}  Ra3 {[%clk 0:01:13]} 45. Rb6+ {[%clk 0:01:03]}  Kg5 {[%clk 0:01:13]} 46. Rb2 {[%clk 0:01:03]}  R8a5 {[%clk 0:00:52]} 47. Rc2 {[%clk 0:00:59]}  R3a4 {[%clk 0:00:46]} 48. Ke3 {[%clk 0:00:58]}  Kf5 {[%clk 0:00:40]} 49. c5 {[%clk 0:00:58]}  Ra7 {[%clk 0:00:34]} 50. c6 {[%clk 0:00:58]}  Rc7 {[%clk 0:00:34]} 51. Rf2+ {[%clk 0:00:55]}  Ke6 {[%clk 0:00:33]} 52. Rc2 {[%clk 0:00:55]}  Kd5 {[%clk 0:00:31]} 53. Raxa2 {[%clk 0:00:55]}  Rxa2 {[%clk 0:00:31]} 54. Rxa2 {[%clk 0:00:56]}  Rxc6 {[%clk 0:00:31]} 55. Ra5+ {[%clk 0:00:56]}  Ke6 {[%clk 0:00:28]} 56. Ke4 {[%clk 0:00:55]}  Rc2 {[%clk 0:00:28]} 57. Ra6+ {[%clk 0:00:47]}  Kf7 {[%clk 0:00:28]} 58. Kf3 {[%clk 0:00:44]}  Rd2 {[%clk 0:00:28]} 59. Rd6 {[%clk 0:00:45]}  e4+ {[%clk 0:00:26]} 60. Kxe4 {[%clk 0:00:42]}  Rxg2 {[%clk 0:00:26]} 61. Rd7+ {[%clk 0:00:40]}  Kf6 {[%clk 0:00:26]} 62. Rh7 {[%clk 0:00:40]}  g5 {[%clk 0:00:25]} 63. d4 {[%clk 0:00:39]}  Rg3 {[%clk 0:00:22]} 64. d5 {[%clk 0:00:39]}  Rxh3 {[%clk 0:00:21]} 65. d6 {[%clk 0:00:40]}  Rh1 {[%clk 0:00:20]} 66. Rh6+ {[%clk 0:00:38]}  Kg7 {[%clk 0:00:19]} 67. Re6 {[%clk 0:00:38]}  Rd1 {[%clk 0:00:18]} 68. Kf5 {[%clk 0:00:38]}  h3 {[%clk 0:00:16]} 69. Rg6+ {[%clk 0:00:39]}  Kf7 {[%clk 0:00:16]} 70. Rh6 {[%clk 0:00:37]}  h2 {[%clk 0:00:16]} 71. Rh7+ {[%clk 0:00:36]}  Ke8 {[%clk 0:00:16]} 72. Rxh2 {[%clk 0:00:30]}  Rxd6 {[%clk 0:00:15]} 73. Kxg5 {[%clk 0:00:29]}  Ke7 {[%clk 0:00:15]} 74. Kf5 {[%clk 0:00:29]}  Rf6+ {[%clk 0:00:15]} 75. Ke5 {[%clk 0:00:30]}  Re6+ {[%clk 0:00:16]} 76. Kd5 {[%clk 0:00:31]}  Rd6+ {[%clk 0:00:16]} 77. Kc5 {[%clk 0:00:31]}  Rd1 {[%clk 0:00:17]} 78. Re2+ {[%clk 0:00:30]}  Kf6 {[%clk 0:00:17]} 79. Re3 {[%clk 0:00:30]}  Rd8 {[%clk 0:00:17]} 80. Kc6 {[%clk 0:00:30]}  Rd1 {[%clk 0:00:18]} 81. Re2 {[%clk 0:00:30]}  Rd3 {[%clk 0:00:18]} 82. Kc5 {[%clk 0:00:30]}  Rd1 {[%clk 0:00:18]} 83. Kc4 {[%clk 0:00:30]}  Rd8 {[%clk 0:00:19]} 84. Rf2+ {[%clk 0:00:30]}  Ke5 {[%clk 0:00:19]} 85. Rh2 {[%clk 0:00:31]}  Rd7 {[%clk 0:00:19]} 86. Kc3 {[%clk 0:00:31]}  Rd8 {[%clk 0:00:19]} 87. Rh5+ {[%clk 0:00:31]}  Ke4 {[%clk 0:00:19]} 88. Rh4+ {[%clk 0:00:32]}  Ke3 {[%clk 0:00:19]} 89. Rh7 {[%clk 0:00:32]}  Rd6 {[%clk 0:00:19]} 90. Kc4 {[%clk 0:00:32]}  Rd8 {[%clk 0:00:19]} 91. Kc5 {[%clk 0:00:32]}  Ke4 {[%clk 0:00:20]} 92. Kc6 {[%clk 0:00:32]}  Rd1 {[%clk 0:00:20]} 93. Rh3 {[%clk 0:00:32]}  Rd2 {[%clk 0:00:19]} 94. Kc5 {[%clk 0:00:31]}  Ke5 {[%clk 0:00:18]} 95. Rh4 {[%clk 0:00:30]}  Rc2+ {[%clk 0:00:17]} 96. Kb4 {[%clk 0:00:30]}  Rc1 {[%clk 0:00:18]} 97. Kb3 {[%clk 0:00:30]}  Rc8 {[%clk 0:00:17]} 98. Rb4 {[%clk 0:00:30]}  Rc7 {[%clk 0:00:18]} 99. Rb5+ {[%clk 0:00:30]}  Kd4 {[%clk 0:00:18]} 100. Kb4 {[%clk 0:00:31]}  Rc4+ {[%clk 0:00:18]} 101. Kb3 {[%clk 0:00:31]}  Rc3+ {[%clk 0:00:18]} 102. Kb2 {[%clk 0:00:30]}  Rc5 {[%clk 0:00:18]} 103. Rb7 {[%clk 0:00:30]}  Kd5 {[%clk 0:00:18]} 104. Kb3 {[%clk 0:00:30]}  Kd6 {[%clk 0:00:19]} 105. Rb4 {[%clk 0:00:26]}  Kd5 {[%clk 0:00:19]} 106. Ka4 {[%clk 0:00:27]}  Rc4 {[%clk 0:00:19]} 107. Rxc4 {[%clk 0:00:26]}  Kxc4 {[%clk 0:00:20]} 1/2-1/2


[Site "https://www.chess.com"]

[Event "Titled Tuesday Blitz February 07 Late 2023"]
[White "Manukyan, Sargis A."]
[Black "Yuan, Qingyu"]
[WhiteFideId "13303970"]
[BlackFideId "8609772"]
[WhiteElo "2158"]
[BlackElo "2373"]
[Result "0-1"]
[Round "05"]
[TimeControl "180+2"]
[Date "2023.02.07"]
[WhiteClock "0:00:02"]
[BlackClock "0:00:06"]

1. d4 {[%clk 0:03:00]}  d5 {[%clk 0:03:00]} 2. c4 {[%clk 0:03:00]}  e6 {[%clk 0:03:00]} 3. Nc3 {[%clk 0:03:00]}  Be7 {[%clk 0:03:00]} 4. Nf3 {[%clk 0:02:59]}  Nf6 {[%clk 0:03:00]} 5. Bg5 {[%clk 0:02:58]}  h6 {[%clk 0:03:01]} 6. Bh4 {[%clk 0:02:55]}  O-O {[%clk 0:03:01]} 7. e3 {[%clk 0:02:55]}  Nbd7 {[%clk 0:03:01]} 8. cxd5 {[%clk 0:02:54]}  Nxd5 {[%clk 0:02:59]} 9. Bxe7 {[%clk 0:02:53]}  Nxe7 {[%clk 0:02:57]} 10. Bd3 {[%clk 0:02:52]}  c5 {[%clk 0:02:55]} 11. O-O {[%clk 0:02:52]}  b6 {[%clk 0:02:51]} 12. Qe2 {[%clk 0:02:50]}  Bb7 {[%clk 0:02:50]} 13. Rfd1 {[%clk 0:02:49]}  Qb8 {[%clk 0:02:25]} 14. Be4 {[%clk 0:02:44]}  Rd8 {[%clk 0:02:20]} 15. Rac1 {[%clk 0:02:36]}  cxd4 {[%clk 0:02:07]} 16. Rxd4 {[%clk 0:02:32]}  Nc6 {[%clk 0:01:54]} 17. Bxc6 {[%clk 0:02:28]}  Bxc6 {[%clk 0:01:55]} 18. Rcd1 {[%clk 0:02:28]}  Qc7 {[%clk 0:01:36]} 19. Qd2 {[%clk 0:02:22]}  Kf8 {[%clk 0:01:28]} 20. b4 {[%clk 0:01:59]}  Ke8 {[%clk 0:01:10]} 21. e4 {[%clk 0:01:47]}  Nf6 {[%clk 0:01:01]} 22. Rxd8+ {[%clk 0:01:38]}  Rxd8 {[%clk 0:01:01]} 23. Qxd8+ {[%clk 0:01:38]}  Qxd8 {[%clk 0:01:02]} 24. Rxd8+ {[%clk 0:01:39]}  Kxd8 {[%clk 0:01:03]} 25. Nd2 {[%clk 0:01:40]}  Ke7 {[%clk 0:00:51]} 26. f3 {[%clk 0:01:40]}  Nd7 {[%clk 0:00:47]} 27. Kf2 {[%clk 0:01:40]}  e5 {[%clk 0:00:45]} 28. Ke3 {[%clk 0:01:41]}  f6 {[%clk 0:00:45]} 29. Nc4 {[%clk 0:01:27]}  h5 {[%clk 0:00:43]} 30. Nb2 {[%clk 0:01:26]}  Nf8 {[%clk 0:00:42]} 31. Nd3 {[%clk 0:01:20]}  Ne6 {[%clk 0:00:42]} 32. b5 {[%clk 0:01:02]}  Bb7 {[%clk 0:00:41]} 33. Nb4 {[%clk 0:00:59]}  Kd6 {[%clk 0:00:38]} 34. Nd3 {[%clk 0:00:50]}  g5 {[%clk 0:00:33]} 35. a4 {[%clk 0:00:43]}  Nd4 {[%clk 0:00:29]} 36. g3 {[%clk 0:00:41]}  Nc2+ {[%clk 0:00:19]} 37. Kd2 {[%clk 0:00:41]}  Nd4 {[%clk 0:00:20]} 38. Ke3 {[%clk 0:00:41]}  Nb3 {[%clk 0:00:15]} 39. f4 {[%clk 0:00:40]}  exf4+ {[%clk 0:00:16]} 40. gxf4 {[%clk 0:00:40]}  g4 {[%clk 0:00:17]} 41. e5+ {[%clk 0:00:37]}  Ke6 {[%clk 0:00:13]} 42. Ne2 {[%clk 0:00:36]}  h4 {[%clk 0:00:10]} 43. exf6 {[%clk 0:00:30]}  g3 {[%clk 0:00:10]} 44. hxg3 {[%clk 0:00:30]}  h3 {[%clk 0:00:10]} 45. Nf2 {[%clk 0:00:26]}  h2 {[%clk 0:00:10]} 46. g4 {[%clk 0:00:23]}  Kxf6 {[%clk 0:00:09]} 47. Ng3 {[%clk 0:00:23]}  Nc5 {[%clk 0:00:09]} 48. g5+ {[%clk 0:00:21]}  Kg6 {[%clk 0:00:09]} 49. Kd4 {[%clk 0:00:16]}  Nxa4 {[%clk 0:00:08]} 50. Ke5 {[%clk 0:00:17]}  Nc5 {[%clk 0:00:08]} 51. Kd6 {[%clk 0:00:13]}  Ne4+ {[%clk 0:00:07]} 52. Nfxe4 {[%clk 0:00:12]}  Bxe4 {[%clk 0:00:08]} 53. Kc7 {[%clk 0:00:12]}  a5 {[%clk 0:00:08]} 54. bxa6 {[%clk 0:00:12]}  b5 {[%clk 0:00:08]} 55. a7 {[%clk 0:00:10]}  Bf3 {[%clk 0:00:07]} 56. Kd6 {[%clk 0:00:08]}  b4 {[%clk 0:00:07]} 57. f5+ {[%clk 0:00:08]}  Kxg5 {[%clk 0:00:07]} 58. Ke7 {[%clk 0:00:08]}  b3 {[%clk 0:00:05]} 59. f6 {[%clk 0:00:09]}  b2 {[%clk 0:00:06]} 60. f7 {[%clk 0:00:10]}  b1=Q {[%clk 0:00:05]} 61. f8=Q {[%clk 0:00:10]}  Qb7+ {[%clk 0:00:05]} 62. Ke6 {[%clk 0:00:08]}  Qd5+ {[%clk 0:00:05]} 63. Ke7 {[%clk 0:00:08]}  Qc5+ {[%clk 0:00:06]} 64. Kf7 {[%clk 0:00:08]}  Qxa7+ {[%clk 0:00:05]} 65. Kg8 {[%clk 0:00:08]}  Bd5+ {[%clk 0:00:05]} 66. Kh8 {[%clk 0:00:08]}  Qd4+ {[%clk 0:00:05]} 67. Kh7 {[%clk 0:00:06]}  Be4+ {[%clk 0:00:05]} 68. Kg8 {[%clk 0:00:05]}  Qd5+ {[%clk 0:00:06]} 69. Kh8 {[%clk 0:00:05]}  Qe5+ {[%clk 0:00:06]} 70. Kg8 {[%clk 0:00:06]}  Bd5+ {[%clk 0:00:06]} 71. Kh7 {[%clk 0:00:06]}  Qc7+ {[%clk 0:00:07]} 72. Kh8 {[%clk 0:00:05]}  Qxg3 {[%clk 0:00:07]} 73. Qg7+ {[%clk 0:00:05]}  Kf4 {[%clk 0:00:07]} 74. Qf6+ {[%clk 0:00:05]}  Ke3 {[%clk 0:00:07]} 75. Qc3+ {[%clk 0:00:05]}  Kf2 {[%clk 0:00:07]} 76. Qd2+ {[%clk 0:00:05]}  Kg1 {[%clk 0:00:07]} 77. Qd1+ {[%clk 0:00:05]}  Kf2 {[%clk 0:00:07]} 78. Qd2+ {[%clk 0:00:05]}  Kf1 {[%clk 0:00:07]} 79. Qd1+ {[%clk 0:00:05]}  Qe1 {[%clk 0:00:08]} 80. Qxd5 {[%clk 0:00:05]}  Qc3+ {[%clk 0:00:07]} 81. Kg8 {[%clk 0:00:04]}  Qg3+ {[%clk 0:00:07]} 82. Kf8 {[%clk 0:00:03]}  Kg1 {[%clk 0:00:05]} 83. Qd1+ {[%clk 0:00:02]}  Kg2 {[%clk 0:00:06]} 0-1


[Site "https://www.chess.com"]

[Event "Titled Tuesday Blitz February 07 Late 2023"]
[White "Rustemov, Alexander"]
[Black "Korchmar, Vasiliy"]
[WhiteFideId "4119002"]
[BlackFideId "24131750"]
[WhiteElo "2525"]
[BlackElo "2438"]
[Result "0-1"]
[Round "05"]
[TimeControl "180+2"]
[Date "2023.02.07"]
[WhiteClock "0:00:10"]
[BlackClock "0:00:04"]

1. c4 {[%clk 0:02:55]}  c6 {[%clk 0:02:58]} 2. Nc3 {[%clk 0:02:55]}  d5 {[%clk 0:02:59]} 3. e3 {[%clk 0:02:55]}  Nf6 {[%clk 0:02:58]} 4. Nf3 {[%clk 0:02:55]}  e6 {[%clk 0:02:57]} 5. Qc2 {[%clk 0:02:53]}  Bd6 {[%clk 0:02:51]} 6. d4 {[%clk 0:02:52]}  Nbd7 {[%clk 0:02:46]} 7. b3 {[%clk 0:02:52]}  O-O {[%clk 0:02:33]} 8. Be2 {[%clk 0:02:52]}  e5 {[%clk 0:02:30]} 9. cxd5 {[%clk 0:02:51]}  cxd5 {[%clk 0:02:25]} 10. Nb5 {[%clk 0:02:51]}  Bb4+ {[%clk 0:02:19]} 11. Bd2 {[%clk 0:02:52]}  Bxd2+ {[%clk 0:02:19]} 12. Nxd2 {[%clk 0:02:51]}  a6 {[%clk 0:02:01]} 13. dxe5 {[%clk 0:02:50]}  Nxe5 {[%clk 0:01:54]} 14. Nd4 {[%clk 0:02:51]}  Bg4 {[%clk 0:01:39]} 15. f3 {[%clk 0:02:50]}  Rc8 {[%clk 0:01:38]} 16. Qb2 {[%clk 0:02:50]}  Bh5 {[%clk 0:01:33]} 17. Kf2 {[%clk 0:02:47]}  Bg6 {[%clk 0:01:32]} 18. Rac1 {[%clk 0:02:38]}  Qe7 {[%clk 0:01:31]} 19. Rxc8 {[%clk 0:02:37]}  Rxc8 {[%clk 0:01:32]} 20. Rc1 {[%clk 0:02:37]}  Re8 {[%clk 0:01:32]} 21. Rc3 {[%clk 0:02:29]}  Nd3+ {[%clk 0:01:26]} 22. Rxd3 {[%clk 0:01:24]}  Bxd3 {[%clk 0:01:24]} 23. Nf1 {[%clk 0:01:25]}  Bxe2 {[%clk 0:01:19]} 24. Qxe2 {[%clk 0:01:24]}  Qa3 {[%clk 0:01:11]} 25. Qd2 {[%clk 0:01:19]}  Rc8 {[%clk 0:01:07]} 26. Ng3 {[%clk 0:01:13]}  g6 {[%clk 0:01:06]} 27. Nge2 {[%clk 0:01:05]}  Rc5 {[%clk 0:00:56]} 28. g4 {[%clk 0:01:02]}  Ra5 {[%clk 0:00:49]} 29. Nc2 {[%clk 0:00:55]}  Qxa2 {[%clk 0:00:41]} 30. Nc1 {[%clk 0:00:53]}  Qb2 {[%clk 0:00:38]} 31. Qxa5 {[%clk 0:00:43]}  Qxc2+ {[%clk 0:00:38]} 32. Ne2 {[%clk 0:00:43]}  Qxb3 {[%clk 0:00:39]} 33. Qd8+ {[%clk 0:00:32]}  Kg7 {[%clk 0:00:38]} 34. g5 {[%clk 0:00:33]}  Ng8 {[%clk 0:00:28]} 35. Qc7 {[%clk 0:00:33]}  Qb2 {[%clk 0:00:25]} 36. h4 {[%clk 0:00:26]}  h6 {[%clk 0:00:20]} 37. f4 {[%clk 0:00:26]}  b5 {[%clk 0:00:14]} 38. Kf3 {[%clk 0:00:25]}  Qa1 {[%clk 0:00:11]} 39. Nd4 {[%clk 0:00:23]}  Qh1+ {[%clk 0:00:11]} 40. Kg3 {[%clk 0:00:23]}  Qe4 {[%clk 0:00:09]} 41. Kf2 {[%clk 0:00:19]}  hxg5 {[%clk 0:00:10]} 42. hxg5 {[%clk 0:00:18]}  Ne7 {[%clk 0:00:09]} 43. Nf3 {[%clk 0:00:11]}  Nf5 {[%clk 0:00:08]} 44. Ne5 {[%clk 0:00:11]}  Qxe3+ {[%clk 0:00:08]} 45. Kg2 {[%clk 0:00:11]}  Qg3+ {[%clk 0:00:06]} 46. Kh1 {[%clk 0:00:11]}  Qh3+ {[%clk 0:00:04]} 47. Kg1 {[%clk 0:00:11]}  Qg3+ {[%clk 0:00:03]} 48. Kh1 {[%clk 0:00:11]}  Qe1+ {[%clk 0:00:04]} 49. Kh2 {[%clk 0:00:10]}  Qf2+ {[%clk 0:00:04]} 0-1


[Site "https://www.chess.com"]

[Event "Titled Tuesday Blitz February 07 Late 2023"]
[White "Gorodetzky, David"]
[Black "Czernek, Tymon"]
[WhiteFideId "2813416"]
[BlackFideId "1199510"]
[WhiteElo "2485"]
[BlackElo "2314"]
[Result "1-0"]
[Round "05"]
[TimeControl "180+2"]
[Date "2023.02.07"]
[WhiteClock "0:00:06"]
[BlackClock "0:00:11"]

1. e4 {[%clk 0:02:33]}  c5 {[%clk 0:02:48]} 2. Nc3 {[%clk 0:02:30]}  a6 {[%clk 0:02:48]} 3. f4 {[%clk 0:02:28]}  b5 {[%clk 0:02:48]} 4. Nf3 {[%clk 0:02:27]}  Bb7 {[%clk 0:02:48]} 5. Qe2 {[%clk 0:02:20]}  e6 {[%clk 0:02:48]} 6. d3 {[%clk 0:02:13]}  Be7 {[%clk 0:02:46]} 7. h4 {[%clk 0:02:07]}  d5 {[%clk 0:02:46]} 8. h5 {[%clk 0:01:59]}  Nh6 {[%clk 0:02:41]} 9. a4 {[%clk 0:01:47]}  b4 {[%clk 0:02:39]} 10. Nd1 {[%clk 0:01:47]}  dxe4 {[%clk 0:02:34]} 11. dxe4 {[%clk 0:01:46]}  f5 {[%clk 0:02:28]} 12. Nf2 {[%clk 0:01:20]}  O-O {[%clk 0:02:26]} 13. Ng5 {[%clk 0:01:13]}  Qd6 {[%clk 0:02:06]} 14. Be3 {[%clk 0:01:06]}  Nc6 {[%clk 0:02:03]} 15. Rd1 {[%clk 0:01:03]}  Nd4 {[%clk 0:02:04]} 16. Bxd4 {[%clk 0:01:03]}  cxd4 {[%clk 0:02:04]} 17. e5 {[%clk 0:01:03]}  Qb6 {[%clk 0:01:52]} 18. Rh3 {[%clk 0:00:50]}  Rac8 {[%clk 0:01:48]} 19. Rhd3 {[%clk 0:00:43]}  Rfd8 {[%clk 0:01:47]} 20. Qd2 {[%clk 0:00:38]}  Nf7 {[%clk 0:01:24]} 21. Nf3 {[%clk 0:00:37]}  Bc5 {[%clk 0:01:04]} 22. g3 {[%clk 0:00:28]}  Be4 {[%clk 0:00:58]} 23. Bg2 {[%clk 0:00:28]}  a5 {[%clk 0:00:50]} 24. Rb3 {[%clk 0:00:26]}  Bd5 {[%clk 0:00:46]} 25. Rd3 {[%clk 0:00:22]}  Bc4 {[%clk 0:00:43]} 26. Qe2 {[%clk 0:00:21]}  Rd7 {[%clk 0:00:42]} 27. b3 {[%clk 0:00:20]}  Ba6 {[%clk 0:00:41]} 28. Kf1 {[%clk 0:00:20]}  Nd8 {[%clk 0:00:41]} 29. Kg1 {[%clk 0:00:20]}  Bxd3 {[%clk 0:00:41]} 30. Nxd3 {[%clk 0:00:19]}  Bf8 {[%clk 0:00:40]} 31. g4 {[%clk 0:00:16]}  fxg4 {[%clk 0:00:37]} 32. Ng5 {[%clk 0:00:17]}  Rdc7 {[%clk 0:00:34]} 33. Qxg4 {[%clk 0:00:16]}  Rxc2 {[%clk 0:00:33]} 34. Be4 {[%clk 0:00:11]}  h6 {[%clk 0:00:28]} 35. Nh7 {[%clk 0:00:11]}  Qc7 {[%clk 0:00:17]} 36. Qg6 {[%clk 0:00:08]}  Be7 {[%clk 0:00:11]} 37. Qe8+ {[%clk 0:00:06]}  Bf8 {[%clk 0:00:11]} 38. Qxf8# {[%clk 0:00:06]} 1-0


[Site "https://www.chess.com"]